fUST/lending_fUST_20250619
["ID","MTS","AMOUNT","RATE_DAILY","PERIOD"]
[366497523,1750291833035,-500.0,0.00021972,2]
[366497526,1750291833046,-500.0,0.00021973,2]
[366497527,1750291833055,-835.98428123,0.00021977,2]
[366497530,1750291833066,-424.70586748,0.00021977,2]
[366497531,1750291833076,-160.0,0.00021977,2]
[366497534,1750291833086,-213.43818883,0.00021989,2]
[366497535,1750291833096,-229.98435572,0.00021989,2]
[366497537,1750291833108,-327.58820004,0.00022038,6]
[366497540,1750291833118,-563.16687752,0.00022173,2]
[366497541,1750291833127,-268.122783,0.00022173,2]
[366497544,1750291833138,-500.0,0.00022173,2]
[366497546,1750291833147,-327.58820004,0.00022176,6]
[366497547,1750291833157,-762.36,0.00022181,3]
[366497550,1750291833167,-460.0,0.00022187,6]
[366497552,1750291833177,-404.74802783,0.00022187,6]
[366497553,1750291833187,-7987.47623672,0.00022188,2]
[366497556,1750291833200,-230.89417163,0.00022188,2]
[366497558,1750291833211,-207.4,0.00022188,2]
[366497560,1750291833220,-500.0,0.0002219,6]
[366497562,1750291833230,-500.0,0.0002219,6]
[366497564,1750291833241,-430.0,0.00022191,6]
[366497566,1750291833250,-410.0,0.00022191,6]
[366497568,1750291833260,-460.0,0.00022191,6]
[366497570,1750291833269,-460.0,0.00022191,6]
[366497572,1750291833279,-450.0,0.00022191,6]
[366497574,1750291833289,-390.0,0.00022191,6]
[366497576,1750291833298,-460.0,0.00022191,6]
[366497578,1750291833308,-460.0,0.00022191,6]
[366497580,1750291833317,-460.0,0.00022191,6]
[366497582,1750291833327,-460.0,0.00022191,6]
[366497584,1750291833336,-387.21,0.00022191,6]
[366497586,1750291833345,-410.0,0.00022191,6]
[366497588,1750291833355,-420.0,0.00022191,6]
[366497590,1750291833364,-460.0,0.00022191,6]
[366497592,1750291833374,-460.0,0.00022191,6]
[366497594,1750291833383,-460.0,0.00022191,6]
[366497596,1750291833393,-430.0,0.00022191,6]
[366497598,1750291833403,-460.0,0.00022191,6]
[366497600,1750291833413,-460.0,0.00022191,6]
[366497618,1750291833571,-390.0,0.00022191,6]
[366497620,1750291833582,-292.85,0.00022191,6]
[366497622,1750291833592,-410.0,0.00022191,6]
[366497624,1750291833602,-460.0,0.00022191,6]
[366497626,1750291833611,-400.0,0.00022191,6]
[366497628,1750291833620,-460.0,0.00022191,6]
[366497630,1750291833631,-460.0,0.00022191,6]
[366497632,1750291833641,-460.0,0.00022191,6]
[366497634,1750291833651,-460.0,0.00022191,6]
[366497636,1750291833660,-560.80122827,0.00022191,6]
[366497638,1750291833670,-460.0,0.00022191,6]
[366497640,1750291833704,-460.0,0.00022191,6]
[366497641,1750291833714,-390.0,0.00022191,6]
[366497643,1750291833724,-460.0,0.00022191,6]
[366497645,1750291833733,-160.0,0.00022191,6]
[366497647,1750291833742,-460.0,0.00022191,6]
[366497648,1750291833751,-390.0,0.00022191,6]
[366497650,1750291833761,-430.0,0.00022191,6]
[366497653,1750291833770,-654.4,0.00022191,6]
[366497654,1750291833780,-500.0,0.00022191,6]
[366497656,1750291833789,-450.0,0.00022191,6]
[366497658,1750291833798,-420.0,0.00022191,6]
[366497660,1750291833808,-420.0,0.00022191,6]
[366497662,1750291833817,-390.0,0.00022191,6]
[366497664,1750291833827,-460.0,0.00022191,6]
[366497666,1750291833837,-228.05998819,0.00022191,6]
[366497668,1750291833847,-590.0,0.00022191,6]
[366497670,1750291833856,-410.0,0.00022191,6]
[366497672,1750291833866,-460.0,0.00022191,6]
[366497675,1750291833879,-460.0,0.00022191,6]
[366497676,1750291833889,-460.0,0.00022191,6]
[366497678,1750291833899,-430.0,0.00022191,6]
[366497681,1750291833908,-203.93835613,0.00022191,6]
[366497683,1750291833918,-332.07239791,0.00022191,6]
[366497684,1750291833928,-460.0,0.00022191,6]
[366497687,1750291833938,-231.35139803,0.00022191,6]
[366497689,1750291833950,-415.40287605,0.00022191,6]
[366497691,1750291833964,-44.59712395,0.00022191,6]
[366497693,1750291833975,-460.0,0.00022191,6]
[366497695,1750291833984,-460.0,0.00022191,6]
[366497697,1750291833994,-2280.65,0.00022191,6]
[366497699,1750291834004,-460.0,0.00022191,6]
[366497701,1750291834013,-460.0,0.00022191,6]
[366497703,1750291834024,-460.0,0.00022191,6]
[366497705,1750291834034,-1832.19,0.00022191,6]
[366497707,1750291834044,-460.0,0.00022191,6]
[366497709,1750291834054,-460.0,0.00022191,6]
[366497711,1750291834063,-460.0,0.00022191,6]
[366497713,1750291834073,-212.5849442,0.00022191,6]
[366497715,1750291834082,-708.98,0.00022191,6]
[366497717,1750291834092,-460.0,0.00022191,6]
[366497719,1750291834102,-460.0,0.00022191,6]
[366497721,1750291834112,-1699.78,0.00022191,6]
[366497723,1750291834123,-460.0,0.00022191,6]
[366497725,1750291834133,-390.0,0.00022191,6]
[366497727,1750291834143,-430.0,0.00022191,6]
[366497729,1750291834153,-460.0,0.00022191,6]
[366497731,1750291834162,-527.82,0.00022191,6]
[366497733,1750291834172,-460.0,0.00022191,6]
[366497735,1750291834182,-635.02,0.00022191,6]
[366497737,1750291834191,-430.0,0.00022191,6]
[366497739,1750291834200,-3438.03,0.00022191,6]
[366497740,1750291834208,-952.13,0.00022191,6]
[366497742,1750291834217,-460.0,0.00022191,6]
[366497744,1750291834228,-460.0,0.00022191,6]
[366497746,1750291834237,-460.0,0.00022191,6]
[366497747,1750291834246,-548.62,0.00022191,6]
[366497748,1750291834256,-839.1,0.00022191,6]
[366497749,1750291834265,-578.7,0.00022191,6]
[366497750,1750291834274,-460.0,0.00022191,6]
[366497751,1750291834283,-460.0,0.00022191,6]
[366497752,1750291834292,-460.0,0.00022191,6]
[366497753,1750291834301,-460.0,0.00022191,6]
[366497754,1750291834311,-460.0,0.00022191,6]
[366497755,1750291834320,-1170.81,0.00022191,6]
[366497756,1750291834329,-460.0,0.00022191,6]
[366497757,1750291834339,-460.0,0.00022191,6]
[366497758,1750291834348,-460.0,0.00022191,6]
[366497759,1750291834357,-460.0,0.00022191,6]
[366497760,1750291834366,-460.0,0.00022191,6]
[366497761,1750291834376,-460.0,0.00022191,6]
[366497762,1750291834385,-460.0,0.00022191,6]
[366497763,1750291834395,-460.0,0.00022191,6]
[366497764,1750291834404,-460.0,0.00022191,6]
[366497765,1750291834414,-661.16,0.00022191,6]
[366497766,1750291834423,-1011.94,0.00022191,6]
[366497767,1750291834432,-460.0,0.00022191,6]
[366497768,1750291834442,-430.0,0.00022191,6]
[366497769,1750291834452,-460.0,0.00022191,6]
[366497770,1750291834461,-460.0,0.00022191,6]
[366497771,1750291834471,-460.0,0.00022191,6]
[366497772,1750291834480,-460.0,0.00022191,6]
[366497773,1750291834490,-115.99924347,0.00022191,6]
[366497775,1750291834507,-1998.63075653,0.00022191,6]
[366497777,1750291834517,-460.0,0.00022191,6]
[366497779,1750291834527,-963.22,0.00022191,6]
[366497781,1750291834536,-306.09,0.00022191,2]
[366497783,1750291834545,-462.79,0.00022191,6]
[366497785,1750291834555,-460.0,0.00022191,6]
[366497787,1750291834564,-206.07,0.00022191,6]
[366497788,1750291834573,-506.72,0.00022191,6]
[366497789,1750291834583,-725.5,0.00022191,6]
[366497791,1750291834592,-674.62,0.00022191,6]
[366497793,1750291834602,-3355.76,0.00022191,6]
[366497795,1750291834612,-1314.74,0.00022191,6]
[366497797,1750291834621,-1031.36,0.00022191,6]
[366497799,1750291834630,-687.74,0.00022191,6]
[366497800,1750291834639,-380.0,0.00022191,6]
[366497802,1750291834649,-460.0,0.00022191,6]
[366497803,1750291834658,-475.24,0.00022191,6]
[366497805,1750291834668,-327.58820004,0.00022314,7]
[366497807,1750291834678,-6321.618691,0.00022365,2]
[366497809,1750291834689,-1000.0,0.0002238,2]
[366497811,1750291834698,-852.3,0.00022391,2]
[366497813,1750291834708,-168.0,0.00022391,2]
[366497814,1750291834717,-500.0,0.00022406,2]
[366497816,1750291834727,-441.14232425,0.00022409,2]
[366497818,1750291834737,-323.01121899,0.00022409,2]
[366497819,1750291834746,-327.58820004,0.00022452,7]
[366497820,1750291834756,-500.0,0.00022459,2]
[366497822,1750291834765,-460.0,0.00022461,6]
[366497824,1750291834775,-460.0,0.00022464,6]
[366497825,1750291834785,-500.0,0.00022464,6]
[366497827,1750291834794,-1433.19,0.00022464,6]
[366497829,1750291834803,-410.0,0.00022464,6]
[366497831,1750291834813,-3044.27,0.00022464,6]
[366497832,1750291834823,-1082.05,0.00022464,6]
[366497833,1750291834832,-460.0,0.00022464,6]
[366497834,1750291834841,-410.0,0.00022464,6]
[366497835,1750291834850,-460.0,0.00022465,6]
[366497837,1750291834860,-340.0,0.00022465,6]
[366497838,1750291834870,-460.0,0.00022465,6]
[366497839,1750291834883,-460.0,0.00022465,6]
[366497840,1750291834893,-460.0,0.00022465,6]
[366497841,1750291834903,-460.0,0.00022465,6]
[366497842,1750291834912,-460.0,0.00022465,6]
[366497843,1750291834923,-410.0,0.00022465,6]
[366497844,1750291834933,-460.0,0.00022465,6]
[366497845,1750291834942,-430.0,0.00022465,6]
[366497846,1750291834952,-440.0,0.00022465,6]
[366497847,1750291834965,-460.0,0.00022465,6]
[366497848,1750291834975,-460.0,0.00022465,6]
[366497849,1750291834984,-460.0,0.00022465,6]
[366497850,1750291834994,-460.0,0.00022465,6]
[366497851,1750291835003,-460.0,0.00022465,6]
[366497852,1750291835013,-360.0,0.00022465,6]
[366497853,1750291835022,-460.0,0.00022465,6]
[366497854,1750291835032,-460.0,0.00022465,6]
[366497855,1750291835042,-460.0,0.00022465,6]
[366497856,1750291835051,-654.4,0.00022465,6]
[366497857,1750291835060,-460.0,0.00022465,6]
[366497858,1750291835069,-460.0,0.00022465,6]
[366497859,1750291835079,-460.0,0.00022465,6]
[366497860,1750291835088,-460.0,0.00022465,6]
[366497861,1750291835098,-460.0,0.00022465,6]
[366497862,1750291835107,-323.43963406,0.00022465,6]
[366497863,1750291835117,-280.96167147,0.00022465,6]
[366497864,1750291835126,-460.0,0.00022465,6]
[366497865,1750291835135,-2280.65,0.00022465,6]
[366497866,1750291835145,-460.0,0.00022465,6]
[366497867,1750291835154,-460.0,0.00022465,6]
[366497868,1750291835164,-460.0,0.00022465,6]
[366497869,1750291835174,-1832.19,0.00022465,6]
[366497870,1750291835184,-420.0,0.00022465,6]
[366497871,1750291835194,-460.0,0.00022465,6]
[366497872,1750291835204,-460.0,0.00022465,6]
[366497873,1750291835213,-708.98,0.00022465,6]
[366497874,1750291835222,-460.0,0.00022465,6]
[366497875,1750291835233,-499.28815791,0.00022465,6]
[366497876,1750291835242,-1699.78,0.00022465,6]
[366497877,1750291835252,-460.0,0.00022465,6]
[366497878,1750291835262,-460.0,0.00022465,6]
[366497879,1750291835271,-527.82,0.00022465,6]
[366497880,1750291835280,-460.0,0.00022465,6]
[366497881,1750291835290,-1251.91747593,0.00022465,6]
[366497882,1750291835303,-2186.11252407,0.00022465,6]
[366497883,1750291835312,-635.02,0.00022465,6]
[366497884,1750291835321,-952.13,0.00022465,6]
[366497885,1750291835331,-200.36,0.00022465,6]
[366497886,1750291835340,-460.0,0.00022465,6]
[366497887,1750291835349,-460.0,0.00022465,6]
[366497888,1750291835359,-548.62,0.00022465,6]
[366497889,1750291835368,-839.1,0.00022465,6]
[366497890,1750291835377,-578.7,0.00022465,6]
[366497891,1750291835387,-460.0,0.00022465,6]
[366497892,1750291835396,-460.0,0.00022465,6]
[366497893,1750291835406,-460.0,0.00022465,6]
[366497894,1750291835415,-460.0,0.00022465,6]
[366497895,1750291835425,-460.0,0.00022465,6]
[366497896,1750291835435,-1170.81,0.00022465,6]
[366497897,1750291835444,-460.0,0.00022465,6]
[366497898,1750291835454,-168.44,0.00022465,6]
[366497899,1750291835463,-460.0,0.00022465,6]
[366497900,1750291835472,-430.0,0.00022465,6]
[366497901,1750291835481,-460.0,0.00022465,6]
[366497902,1750291835491,-460.0,0.00022465,6]
[366497903,1750291835500,-460.0,0.00022465,6]
[366497904,1750291835510,-460.0,0.00022465,6]
[366497905,1750291835519,-460.0,0.00022465,6]
[366497906,1750291835528,-661.16,0.00022465,6]
[366497907,1750291835538,-1011.94,0.00022465,6]
[366497908,1750291835548,-460.0,0.00022465,6]
[366497909,1750291835558,-460.0,0.00022465,6]
[366497910,1750291835568,-460.0,0.00022465,6]
[366497911,1750291835577,-460.0,0.00022465,6]
[366497912,1750291835586,-320.0,0.00022465,6]
[366497913,1750291835596,-2114.63,0.00022465,6]
[366497914,1750291835605,-460.0,0.00022465,6]
[366497915,1750291835615,-963.22,0.00022465,6]
[366497916,1750291835624,-306.09,0.00022465,2]
[366497917,1750291835633,-462.79,0.00022465,6]
[366497918,1750291835643,-460.0,0.00022465,6]
[366497919,1750291835652,-506.72,0.00022465,6]
[366497920,1750291835661,-725.5,0.00022465,6]
[366497921,1750291835670,-674.62,0.00022465,6]
[366497922,1750291835680,-3355.76,0.00022465,6]
[366497923,1750291835690,-1314.74,0.00022465,6]
[366497924,1750291835699,-1031.36,0.00022465,6]
[366497925,1750291835709,-687.74,0.00022465,6]
[366497926,1750291835719,-460.0,0.00022465,6]
[366497927,1750291835728,-475.24,0.00022465,6]
[366497928,1750291835738,-500.0,0.00022504,2]
[366497929,1750291835747,-509.77928341,0.00022504,2]
[366497930,1750291835757,-327.58820004,0.0002259,7]
[366497931,1750291835767,-1296.55905262,0.00022639,2]
[366497932,1750291835776,-520.91,0.00022651,2]
[366497933,1750291835786,-327.58820004,0.00022728,7]
[366497934,1750291835796,-460.0,0.00022735,6]
[366497935,1750291835805,-460.0,0.00022738,6]
[366497936,1750291835815,-500.0,0.00022738,6]
[366497937,1750291835825,-1433.19,0.00022738,6]
[366497938,1750291835834,-3044.27,0.00022738,6]
[366497939,1750291835844,-1082.05,0.00022738,6]
[366497940,1750291835853,-430.0,0.00022738,6]
[366497941,1750291835863,-460.0,0.00022739,6]
[366497942,1750291835872,-460.0,0.00022739,6]
[366497943,1750291835881,-460.0,0.00022739,6]
[366497944,1750291835891,-460.0,0.00022739,6]
[366497945,1750291835904,-341.73744594,0.00022739,6]
[366497946,1750291835913,-460.0,0.00022739,6]
[366497947,1750291835923,-330.0,0.00022739,6]
[366497948,1750291835932,-460.0,0.00022739,6]
[366497949,1750291835943,-460.0,0.00022739,6]
[366497950,1750291835952,-460.0,0.00022739,6]
[366497951,1750291835962,-460.0,0.00022739,6]
[366497952,1750291835971,-460.0,0.00022739,6]
[366497953,1750291835984,-460.0,0.00022739,6]
[366497954,1750291835994,-460.0,0.00022739,6]
[366497955,1750291836003,-460.0,0.00022739,6]
[366497956,1750291836013,-654.4,0.00022739,6]
[366497957,1750291836022,-470.0,0.00022739,6]
[366497958,1750291836032,-270.0,0.00022739,6]
[366497959,1750291836042,-349.86829182,0.00022739,6]
[366497960,1750291836052,-359.97982899,0.00022739,6]
[366497961,1750291836062,-460.0,0.00022739,6]
[366497962,1750291836071,-460.0,0.00022739,6]
[366497963,1750291836081,-2280.65,0.00022739,6]
[366497964,1750291836091,-460.0,0.00022739,6]
[366497965,1750291836101,-460.0,0.00022739,6]
[366497966,1750291836111,-460.0,0.00022739,6]
[366497967,1750291836120,-1832.19,0.00022739,6]
[366497968,1750291836130,-460.0,0.00022739,6]
[366497969,1750291836140,-460.0,0.00022739,6]
[366497970,1750291836150,-708.98,0.00022739,6]
[366497971,1750291836160,-460.0,0.00022739,6]
[366497972,1750291836169,-1699.78,0.00022739,6]
[366497973,1750291836179,-460.0,0.00022739,6]
[366497974,1750291836188,-460.0,0.00022739,6]
[366497975,1750291836198,-527.82,0.00022739,6]
[366497976,1750291836208,-460.0,0.00022739,6]
[366497977,1750291836218,-3438.03,0.00022739,6]
[366497978,1750291836227,-635.02,0.00022739,6]
[366497979,1750291836237,-952.13,0.00022739,6]
[366497980,1750291836247,-460.0,0.00022739,6]
[366497981,1750291836257,-460.0,0.00022739,6]
[366497982,1750291836267,-548.62,0.00022739,6]
[366497983,1750291836382,-839.1,0.00022739,6]
[366497984,1750291836392,-578.7,0.00022739,6]
[366497985,1750291836402,-460.0,0.00022739,6]
[366497986,1750291836411,-460.0,0.00022739,6]
[366497987,1750291836420,-460.0,0.00022739,6]
[366497988,1750291836430,-420.0,0.00022739,6]
[366497989,1750291836439,-460.0,0.00022739,6]
[366497990,1750291836449,-1170.81,0.00022739,6]
[366497991,1750291836458,-460.0,0.00022739,6]
[366497992,1750291836468,-460.0,0.00022739,6]
[366497993,1750291836478,-460.0,0.00022739,6]
[366497994,1750291836487,-460.0,0.00022739,6]
[366497995,1750291836497,-390.0,0.00022739,6]
[366497996,1750291836507,-460.0,0.00022739,6]
[366497997,1750291836516,-460.0,0.00022739,6]
[366497998,1750291836527,-661.16,0.00022739,6]
[366497999,1750291836537,-1011.94,0.00022739,6]
[366498000,1750291836547,-460.0,0.00022739,6]
[366498001,1750291836556,-460.0,0.00022739,6]
[366498002,1750291836566,-460.0,0.00022739,6]
[366498003,1750291836576,-460.0,0.00022739,6]
[366498004,1750291836586,-2114.63,0.00022739,6]
[366498005,1750291836595,-460.0,0.00022739,6]
[366498006,1750291836605,-963.22,0.00022739,6]
[366498007,1750291836614,-306.09,0.00022739,2]
[366498008,1750291836624,-462.79,0.00022739,6]
[366498009,1750291836633,-460.0,0.00022739,6]
[366498010,1750291836643,-506.72,0.00022739,6]
[366498011,1750291836652,-725.5,0.00022739,6]
[366498012,1750291836662,-674.62,0.00022739,6]
[366498013,1750291836672,-3355.76,0.00022739,6]
[366498014,1750291836682,-1314.74,0.00022739,6]
[366498015,1750291836691,-1031.36,0.00022739,6]
[366498016,1750291836700,-687.74,0.00022739,6]
[366498017,1750291836710,-460.0,0.00022739,6]
[366498018,1750291836720,-475.24,0.00022739,6]
[366498019,1750291836729,-153.0,0.00022821,2]
[366498020,1750291836739,-153.0,0.00022821,2]
[366498021,1750291836749,-153.0,0.00022821,2]
[366498022,1750291836759,-153.0,0.00022821,2]
[366498023,1750291836769,-153.0,0.00022821,2]
[366498024,1750291836778,-153.0,0.00022821,2]
[366498025,1750291836787,-153.0,0.00022821,2]
[366498026,1750291836797,-153.0,0.00022821,2]
[366498027,1750291836807,-153.0,0.00022821,2]
[366498028,1750291836816,-153.0,0.00022821,2]
[366498029,1750291836826,-153.0,0.00022821,2]
[366498030,1750291836836,-327.58820004,0.00022866,8]
[366498031,1750291836845,-1296.55905259,0.00022929,2]
[366498032,1750291836855,-500.0,0.00022954,2]
[366498033,1750291836865,-1250.0,0.0002298,2]
[366498034,1750291836874,-1063.24869493,0.00022982,2]
[366498035,1750291836884,-160.0891885,0.00022986,2]
[366498036,1750291836895,-153.0,0.00022986,2]
[366498037,1750291836905,-153.0,0.00022986,2]
[366498038,1750291836915,-327.58820004,0.00023003,8]
[366498039,1750291836925,-460.0,0.00023009,6]
[366498040,1750291836935,-460.0,0.00023012,6]
[366498041,1750291836945,-1433.19,0.00023012,6]
[366498042,1750291836955,-3044.27,0.00023012,6]
[366498043,1750291836965,-1082.05,0.00023012,6]
[366498044,1750291836975,-460.0,0.00023013,6]
[366498045,1750291836985,-460.0,0.00023013,6]
[366498046,1750291836995,-463.66,0.00023013,6]
[366498047,1750291837005,-460.0,0.00023013,6]
[366498048,1750291837015,-460.0,0.00023013,6]
[366498049,1750291837024,-460.0,0.00023013,6]
[366498050,1750291837034,-460.0,0.00023013,6]
[366498051,1750291837043,-460.0,0.00023013,6]
[366498052,1750291837053,-445.41,0.00023013,6]
[366498053,1750291837063,-460.0,0.00023013,6]
[366498054,1750291837072,-460.0,0.00023013,6]
[366498055,1750291837081,-654.4,0.00023013,6]
[366498056,1750291837091,-230.0,0.00023013,6]
[366498057,1750291837100,-460.0,0.00023013,6]
[366498058,1750291837110,-2280.65,0.00023013,6]
[366498059,1750291837119,-460.0,0.00023013,6]
[366498060,1750291837129,-460.0,0.00023013,6]
[366498061,1750291837139,-607.27724641,0.00023013,6]
[366498062,1750291837148,-1832.19,0.00023013,6]
[366498063,1750291837158,-460.0,0.00023013,6]
[366498064,1750291837168,-708.98,0.00023013,6]
[366498065,1750291837177,-460.0,0.00023013,6]
[366498066,1750291837187,-1699.78,0.00023013,6]
[366498067,1750291837197,-460.0,0.00023013,6]
[366498068,1750291837206,-460.0,0.00023013,6]
[366498069,1750291837216,-527.82,0.00023013,6]
[366498070,1750291837225,-3438.03,0.00023013,6]
[366498071,1750291837236,-635.02,0.00023013,6]
[366498072,1750291837246,-952.13,0.00023013,6]
[366498073,1750291837256,-460.0,0.00023013,6]
[366498074,1750291837265,-460.0,0.00023013,6]
[366498075,1750291837275,-548.62,0.00023013,6]
[366498076,1750291837285,-839.1,0.00023013,6]
[366498077,1750291837295,-578.7,0.00023013,6]
[366498078,1750291837305,-460.0,0.00023013,6]
[366498079,1750291837314,-460.0,0.00023013,6]
[366498080,1750291837323,-460.0,0.00023013,6]
[366498081,1750291837333,-460.0,0.00023013,6]
[366498082,1750291837343,-1170.81,0.00023013,6]
[366498083,1750291837353,-460.0,0.00023013,6]
[366498084,1750291837362,-460.0,0.00023013,6]
[366498085,1750291837372,-460.0,0.00023013,6]
[366498086,1750291837381,-460.0,0.00023013,6]
[366498087,1750291837391,-460.0,0.00023013,6]
[366498088,1750291837400,-661.16,0.00023013,6]
[366498089,1750291837410,-1011.94,0.00023013,6]
[366498090,1750291837420,-460.0,0.00023013,6]
[366498091,1750291837429,-460.0,0.00023013,6]
[366498092,1750291837439,-460.0,0.00023013,6]
[366498093,1750291837449,-460.0,0.00023013,6]
[366498094,1750291837459,-2114.63,0.00023013,6]
[366498095,1750291837468,-460.0,0.00023013,6]
[366498096,1750291837478,-963.22,0.00023013,6]
[366498097,1750291837488,-306.09,0.00023013,2]
[366498098,1750291837498,-462.79,0.00023013,6]
[366498099,1750291837508,-460.0,0.00023013,6]
[366498100,1750291837517,-506.72,0.00023013,6]
[366498101,1750291837527,-725.5,0.00023013,6]
[366498102,1750291837537,-674.62,0.00023013,6]
[366498103,1750291837547,-3355.76,0.00023013,6]
[366498104,1750291837557,-1314.74,0.00023013,6]
[366498105,1750291837566,-1031.36,0.00023013,6]
[366498106,1750291837576,-687.74,0.00023013,6]
[366498107,1750291837586,-460.0,0.00023013,6]
[366498108,1750291837595,-475.24,0.00023013,6]
[366498109,1750291837605,-500.0,0.00023027,2]
[366498110,1750291837615,-500.0,0.00023027,2]
[366498111,1750291837624,-500.0,0.00023036,2]
[366498112,1750291837634,-500.0,0.00023036,2]
[366498113,1750291837643,-500.0,0.00023036,2]
[366498114,1750291837652,-500.0,0.0002304,2]
[366498115,1750291837662,-500.0,0.0002304,2]
[366498116,1750291837672,-500.0,0.0002304,2]
[366498117,1750291837681,-500.0,0.00023045,2]
[366498118,1750291837691,-528.44054,0.00023052,2]
[366498119,1750291837700,-310.0,0.00023055,2]
[366498120,1750291837710,-327.58820004,0.00023141,8]
[366498122,1750291837719,-4017.58066435,0.0002315,2]
[366498123,1750291837728,-500.0,0.00023171,2]
[366498125,1750291837738,-163.415632,0.00023182,2]
[366498127,1750291837747,-1296.55905259,0.0002322,2]
[366498129,1750291837757,-365.5483814,0.0002326,2]
[366498130,1750291837767,-731.0967628,0.0002326,2]
[366498132,1750291837776,-731.0967628,0.0002326,2]
[366498133,1750291837785,-2032.9,0.00023277,3]
[366498134,1750291837795,-1016.44,0.00023277,3]
[366498135,1750291837804,-508.22,0.00023277,3]
[366498137,1750291837814,-327.58820004,0.00023279,8]
[366498138,1750291837823,-460.0,0.00023283,6]
[366498139,1750291837834,-460.0,0.00023286,6]
[366498140,1750291837843,-1433.19,0.00023286,6]
[366498141,1750291837853,-3044.27,0.00023286,6]
[366498142,1750291837863,-1082.05,0.00023286,6]
[366498143,1750291837873,-460.0,0.00023287,6]
[366498144,1750291837883,-460.0,0.00023287,6]
[366498145,1750291837895,-460.0,0.00023287,6]
[366498146,1750291837904,-460.0,0.00023287,6]
[366498147,1750291837914,-460.0,0.00023287,6]
[366498148,1750291837923,-460.0,0.00023287,6]
[366498149,1750291837933,-460.0,0.00023287,6]
[366498150,1750291837942,-460.0,0.00023287,6]
[366498151,1750291837952,-654.4,0.00023287,6]
[366498152,1750291837962,-460.0,0.00023287,6]
[366498153,1750291837972,-2280.65,0.00023287,6]
[366498154,1750291837982,-460.0,0.00023287,6]
[366498155,1750291837993,-460.0,0.00023287,6]
[366498156,1750291838003,-1832.19,0.00023287,6]
[366498157,1750291838013,-460.0,0.00023287,6]
[366498159,1750291838022,-708.98,0.00023287,6]
[366498161,1750291838032,-460.0,0.00023287,6]
[366498163,1750291838042,-1699.78,0.00023287,6]
[366498164,1750291838052,-460.0,0.00023287,6]
[366498166,1750291838061,-460.0,0.00023287,6]
[366498168,1750291838071,-527.82,0.00023287,6]
[366498170,1750291838081,-3438.03,0.00023287,6]
[366498171,1750291838091,-635.02,0.00023287,6]
[366498172,1750291838100,-952.13,0.00023287,6]
[366498173,1750291838110,-460.0,0.00023287,6]
[366498174,1750291838119,-460.0,0.00023287,6]
[366498175,1750291838129,-548.62,0.00023287,6]
[366498176,1750291838139,-839.1,0.00023287,6]
[366498177,1750291838149,-578.7,0.00023287,6]
[366498178,1750291838159,-460.0,0.00023287,6]
[366498179,1750291838169,-460.0,0.00023287,6]